fUSD/lending_fUSD_20240429
["ID","MTS","AMOUNT","RATE_DAILY","PERIOD"]
[324911552,1714411843941,-617.93,0.00012754,2]
[324911553,1714411843949,-4252.16,0.00012754,2]
[324911554,1714411843958,-792.08,0.00012754,2]
[324911555,1714411843967,-500.0,0.00012754,2]
[324911556,1714411843976,-500.0,0.00012754,2]
[324911557,1714411843985,-2010.26,0.00012754,2]
[324911558,1714411843994,-500.0,0.00012754,2]
[324911559,1714411844004,-326.55,0.00012754,2]
[324911560,1714411844013,-571.42,0.00012754,2]
[324911561,1714411844023,-1955.62,0.00012754,2]
[324911562,1714411844032,-500.0,0.00012754,2]
[324911563,1714411844042,-500.0,0.00012754,2]
[324911564,1714411844052,-500.0,0.00012754,2]
[324911565,1714411844062,-500.0,0.00012754,2]
[324911566,1714411844073,-2692.17,0.00012754,2]
[324911567,1714411844082,-500.0,0.00012754,2]
[324911568,1714411844091,-1766.74,0.00012754,2]
[324911569,1714411844100,-608.84,0.00012754,2]
[324911570,1714411844110,-2208.06,0.00012754,2]
[324911571,1714411844120,-500.0,0.00012754,2]
[324911572,1714411844130,-703.73776799,0.00012754,2]
[324911573,1714411844141,-465.7345,0.00012754,2]
[324911574,1714411844156,-844.35729173,0.00012754,2]
[324911575,1714411844168,-1063.5617773,0.00012754,2]
[324911576,1714411844181,-575.92866298,0.00012754,2]
[324911577,1714411844190,-72.59426932,0.00012754,2]
[324911578,1714411844201,-795.2682055,0.00012754,2]
[324911579,1714411844212,-1007.38297438,0.00012754,2]
[324911580,1714411844262,-193.4245508,0.00012754,2]
[324911581,1714411844272,-260.0895319,0.00012754,2]
[324911582,1714411844281,-4970.16,0.00012754,2]
[324911583,1714411844291,-323.11217764,0.00012754,2]
[324911584,1714411844404,-176.88782236,0.00012754,2]
[324911585,1714411844414,-500.0,0.00012754,2]
[324911586,1714411844426,-1867.78,0.00012754,2]
[324911587,1714411844435,-847.36,0.00012754,2]
[324911588,1714411844445,-610.18,0.00012754,2]
[324911589,1714411844453,-557.73645839,0.00012755,2]
[324911590,1714411844462,-500.0,0.00012755,2]
[324911591,1714411844471,-500.0,0.00012755,2]
[324911592,1714411844480,-500.0,0.00012755,2]
[324911593,1714411844490,-365.24964166,0.00012755,2]
[324911594,1714411844501,-500.0,0.00012755,2]
[324911595,1714411844514,-500.0,0.00012755,2]
[324911596,1714411844523,-649.81323977,0.00012755,2]
[324911597,1714411844532,-500.0,0.00012755,2]
[324911598,1714411844543,-643.51165314,0.00012755,2]
[324911599,1714411844554,-500.0,0.00012755,2]
[324911600,1714411844563,-621.35,0.00012755,2]
[324911601,1714411844573,-500.0,0.00012755,2]
[324911602,1714411844583,-500.0,0.00012755,2]
[324911603,1714411844592,-500.0,0.00012755,2]
[324911604,1714411844602,-500.0,0.00012755,2]
[324911605,1714411844611,-183.04164829,0.00012755,2]
[324911606,1714411844621,-500.0,0.00012755,2]
[324911607,1714411844631,-1050.41,0.00012755,2]
[324911608,1714411844640,-500.0,0.00012755,2]
[324911609,1714411844650,-678.22,0.00012755,2]
[324911610,1714411844659,-283.70695354,0.00012755,2]
[324911611,1714411844669,-1927.48,0.00012755,2]
[324911612,1714411844682,-500.0,0.00012755,2]
[324911613,1714411844692,-2270.35,0.00012755,2]
[324911614,1714411844701,-1194.87,0.00012755,2]
[324911615,1714411844710,-500.0,0.00012755,2]
[324911616,1714411844720,-1195.79,0.00012755,2]
[324911617,1714411844729,-500.0,0.00012755,2]
[324911618,1714411844738,-3487.41,0.00012755,2]
[324911619,1714411844749,-4413.68,0.00012755,2]
[324911620,1714411844758,-1695.47,0.00012755,2]
[324911621,1714411844767,-1952.91,0.00012755,2]
[324911622,1714411844777,-2280.96,0.00012755,2]
[324911623,1714411844787,-2607.45,0.00012755,2]
[324911624,1714411844798,-1661.94,0.00012755,2]
[324911625,1714411844808,-785.28,0.00012755,2]
[324911626,1714411844817,-1120.73,0.00012755,2]
[324911627,1714411844827,-843.95,0.00012755,2]
[324911628,1714411844836,-2312.76,0.00012755,2]
[324911629,1714411844845,-5986.43,0.00012755,2]
[324911630,1714411844854,-505.3,0.00012755,2]
[324911631,1714411844864,-3202.27,0.00012755,2]
[324911632,1714411844873,-822.31,0.00012755,2]
[324911633,1714411844882,-500.0,0.00012755,2]
[324911634,1714411844892,-500.0,0.00012755,2]
[324911635,1714411844901,-500.0,0.00012755,2]
[324911636,1714411844911,-2175.44,0.00012755,2]
[324911637,1714411844920,-1328.19,0.00012755,2]
[324911638,1714411844932,-588.37,0.00012755,2]
[324911639,1714411844941,-942.64,0.00012755,2]
[324911640,1714411844950,-710.39,0.00012755,2]
[324911641,1714411844959,-1047.69,0.00012755,2]
[324911642,1714411844968,-500.0,0.00012755,2]
[324911643,1714411844978,-3605.64,0.00012755,2]
[324911644,1714411844987,-214.47,0.00012755,2]
[324911645,1714411844997,-656.05,0.00012755,2]
[324911646,1714411845006,-500.0,0.00012755,2]
[324911647,1714411845015,-674.82,0.00012755,2]
[324911648,1714411845024,-500.0,0.00012757,2]
[324911649,1714411845033,-529.96,0.00012772,2]
[324911650,1714411845043,-1000.0,0.00012791,2]
[324911651,1714411845051,-203.26,0.00012795,2]
[324911652,1714411845060,-264.53098163,0.000128,2]
[324911653,1714411845069,-1500.0,0.000128,4]
[324911654,1714411845078,-1728.582973,0.00012814,2]
[324911655,1714411845087,-1152.388648,0.00012814,2]
[324911656,1714411845096,-1000.0,0.00012826,2]
[324911657,1714411845105,-500.0,0.00012826,2]
[324911658,1714411845114,-1979.0,0.00012842,2]
[324911659,1714411845123,-6043.2911377,0.00012847,2]
[324911660,1714411845132,-801.0340995,0.00012847,2]
[324911661,1714411845141,-72214.3885369,0.00012847,2]
[324911662,1714411845150,-9301.6471903,0.00012847,2]
[324911663,1714411845159,-3014.7660275,0.00012847,2]
[324911664,1714411845168,-2509.1378715,0.00012847,2]
[324911665,1714411845179,-155.1055577,0.00012853,2]
[324911666,1714411845188,-477.17397627,0.00012853,2]
[324911667,1714411845197,-155.7977596,0.00012853,2]
[324911668,1714411845206,-156.37604537,0.00012854,2]
[324911669,1714411845215,-236.80231061,0.00012854,2]
[324911670,1714411845224,-500.0,0.00012855,2]
[324911671,1714411845233,-500.0,0.00012855,2]
[324911672,1714411845242,-600.49,0.00012855,2]
[324911673,1714411845252,-500.0,0.00012855,2]
[324911674,1714411845260,-500.0,0.00012855,2]
[324911675,1714411845270,-500.0,0.00012855,2]
[324911676,1714411845279,-500.0,0.00012855,2]
[324911677,1714411845288,-1570.25,0.00012855,2]
[324911678,1714411845298,-500.0,0.00012855,2]
[324911679,1714411845307,-720.31,0.00012855,2]
[324911680,1714411845316,-500.0,0.00012855,2]
[324911681,1714411845325,-500.0,0.00012855,2]
[324911682,1714411845335,-500.0,0.00012855,2]
[324911683,1714411845344,-500.0,0.00012855,2]
[324911684,1714411845353,-500.0,0.00012855,2]
[324911685,1714411845362,-1507.7,0.00012855,2]
[324911686,1714411845371,-500.0,0.00012855,2]
[324911687,1714411845380,-500.0,0.00012855,2]
[324911688,1714411845389,-657.25,0.00012855,2]
[324911689,1714411845399,-648.67,0.00012855,2]
[324911690,1714411845408,-500.0,0.00012855,2]
[324911691,1714411845417,-500.0,0.00012855,2]
[324911692,1714411845427,-500.0,0.00012855,2]
[324911693,1714411845436,-500.0,0.00012855,2]
[324911694,1714411845445,-500.0,0.00012855,2]
[324911695,1714411845454,-686.41,0.00012855,2]
[324911696,1714411845463,-500.0,0.00012855,2]
[324911697,1714411845472,-549.01,0.00012855,2]
[324911698,1714411845481,-500.0,0.00012855,2]
[324911699,1714411845491,-500.0,0.00012855,2]
[324911700,1714411845505,-500.0,0.00012855,2]
[324911701,1714411845514,-500.0,0.00012855,2]
[324911702,1714411845523,-500.0,0.00012855,2]
[324911703,1714411845532,-653.14,0.00012855,2]
[324911704,1714411845541,-500.0,0.00012855,2]
[324911705,1714411845550,-500.0,0.00012855,2]
[324911706,1714411845559,-500.0,0.00012855,2]
[324911707,1714411845568,-500.0,0.00012855,2]
[324911708,1714411845578,-691.21,0.00012855,2]
[324911709,1714411845588,-513.13,0.00012855,2]
[324911710,1714411845597,-500.0,0.00012855,2]
[324911711,1714411845606,-500.0,0.00012855,2]
[324911712,1714411845615,-500.0,0.00012855,2]
[324911713,1714411845624,-500.0,0.00012855,2]
[324911714,1714411845634,-599.98,0.00012855,2]
[324911715,1714411845643,-500.0,0.00012855,2]
[324911716,1714411845652,-500.0,0.00012855,2]
[324911717,1714411845662,-530.68,0.00012855,2]
[324911718,1714411845673,-500.0,0.00012855,2]
[324911719,1714411845682,-500.0,0.00012855,2]
[324911720,1714411845691,-500.0,0.00012855,2]
[324911721,1714411845700,-581.96,0.00012855,2]
[324911722,1714411845709,-646.32,0.00012855,2]
[324911723,1714411845718,-662.65,0.00012855,2]
[324911724,1714411845727,-500.0,0.00012855,2]
[324911725,1714411845736,-671.89,0.00012855,2]
[324911726,1714411845745,-500.0,0.00012855,2]
[324911727,1714411845755,-580.68,0.00012855,2]
[324911728,1714411845764,-5343.90419248,0.00012856,2]
[324911729,1714411845796,-2199.22889,0.00012856,2]
[324911730,1714411845808,-3930.55985511,0.00012856,2]
[324911731,1714411845819,-8025.82173368,0.00012856,2]
[324911732,1714411845828,-500.0,0.00012856,2]
[324911733,1714411845837,-500.0,0.00012856,2]
[324911734,1714411845846,-500.0,0.00012856,2]
[324911735,1714411845855,-500.0,0.00012856,2]
[324911737,1714411846004,-500.0,0.00012856,2]
[324911738,1714411846013,-500.0,0.00012856,2]
[324911739,1714411846022,-500.0,0.00012856,2]
[324911740,1714411846031,-500.0,0.00012856,2]
[324911741,1714411846041,-500.0,0.00012856,2]
[324911742,1714411846050,-500.0,0.00012856,2]
[324911743,1714411846059,-598.91,0.00012856,2]
[324911744,1714411846068,-500.0,0.00012856,2]
[324911745,1714411846078,-487.22450388,0.00012857,2]
[324911746,1714411846088,-2999.50193074,0.00012857,2]
[324911747,1714411846097,-155.0,0.00012857,2]
[324911748,1714411846107,-246.7506543,0.00012857,2]
[324911749,1714411846117,-247.55578873,0.00012857,2]
[324911750,1714411846126,-209.08569666,0.00012857,2]
[324911751,1714411846136,-2357.76557745,0.00012857,2]
[324911752,1714411846146,-207.33070675,0.00012859,2]
[324911753,1714411846155,-5850.48710487,0.00012859,2]
[324911754,1714411846165,-1000.0,0.00012859,2]
[324911755,1714411846176,-150.8,0.00012875,2]
[324911756,1714411846185,-150.0,0.00012875,2]
[324911757,1714411846194,-150.0,0.00012875,2]
[324911758,1714411846203,-150.0,0.00012875,2]
[324911759,1714411846212,-150.0,0.00012875,2]
[324911760,1714411846221,-301.84,0.00012875,2]
[324911761,1714411846233,-1000.0,0.00012893,2]
[324911762,1714411846242,-500.0,0.00012893,2]
[324911763,1714411846252,-6880.09449174,0.000129,2]
[324911764,1714411846262,-164.98184053,0.000129,2]
[324911765,1714411846274,-1500.0,0.000129,4]
[324911766,1714411846285,-14636.74940846,0.000129,2]
[324911767,1714411846295,-461.08251497,0.000129,2]
[324911768,1714411846305,-699.42536632,0.000129,2]
[324911769,1714411846314,-15599.80180775,0.00012902,2]
[324911770,1714411846323,-536.67457,0.0001291,2]
[324911771,1714411846332,-8633.2105259,0.00012942,2]
[324911772,1714411846341,-2798.1183622,0.00012942,2]
[324911773,1714411846350,-2328.8257489,0.00012942,2]
[324911774,1714411846360,-5672.8133406,0.00012951,2]
[324911775,1714411846370,-751.9275214,0.00012951,2]
[324911776,1714411846379,-68187.2866632,0.00012951,2]
[324911777,1714411846388,-7964.7738615,0.00012951,2]
[324911778,1714411846398,-2581.4706969,0.00012951,2]
[324911779,1714411846407,-2148.5136262,0.00012951,2]
[324911780,1714411846416,-5302.3355435,0.00012959,2]
[324911781,1714411846425,-702.8209432,0.00012959,2]
[324911782,1714411846434,-64160.1847896,0.00012959,2]
[324911783,1714411846443,-4931.8577464,0.0001296,2]
[324911784,1714411846452,-653.7143651,0.0001296,2]
[324911785,1714411846461,-60133.0829159,0.0001296,2]
[324911786,1714411846470,-7296.3371971,0.0001296,2]
[324911787,1714411846479,-2364.8230316,0.0001296,2]
[324911788,1714411846489,-1968.2015035,0.0001296,2]
[324911789,1714411846499,-300.471,0.00012968,2]
[324911790,1714411846511,-1728.582973,0.00012968,2]
[324911791,1714411846520,-1152.388648,0.00012968,2]
[324911792,1714411846529,-4561.3799493,0.00012969,2]
[324911793,1714411846540,-4190.9021522,0.00012969,2]
[324911794,1714411846551,-604.6077869,0.00012969,2]
[324911795,1714411846559,-555.5012087,0.00012969,2]
[324911796,1714411846569,-56105.9810422,0.00012969,2]
[324911797,1714411846582,-52078.8791686,0.00012969,2]
[324911798,1714411846591,-6627.9005328,0.00012969,2]
[324911799,1714411846601,-5959.4638684,0.00012969,2]
[324911800,1714411846610,-2148.1753663,0.00012969,2]
[324911801,1714411846620,-1931.527701,0.00012969,2]
[324911802,1714411846630,-1787.8893808,0.00012969,2]
[324911803,1714411846639,-1607.5772581,0.00012969,2]
[324911804,1714411846648,-2000.0,0.00012977,2]
[324911805,1714411846658,-105576.21321705,0.00012978,3]
[324911806,1714411846671,-378.69167502,0.00012978,3]
[324911807,1714411846683,-11366.72017487,0.00012978,3]
[324911808,1714411847089,-406.44,0.00012978,3]
[324911809,1714411847101,-1068.68132739,0.00012978,3]
[324911810,1714411847113,-780.55813642,0.00012978,3]
[324911811,1714411847124,-2151.0,0.00012978,3]
[324911812,1714411847142,-442.88999996,0.00012978,3]
[324911813,1714411847154,-472.71033083,0.00012978,3]
[324911814,1714411847167,-1167.33489127,0.00012978,3]
[324911815,1714411847179,-1899.49,0.00012978,3]
[324911816,1714411847190,-635.77000001,0.00012978,3]
[324911817,1714411847200,-475.35425564,0.00012978,3]
[324911818,1714411847213,-1490.0,0.00012978,3]
[324911819,1714411847229,-462.49,0.00012978,3]
[324911820,1714411847843,-569.85819587,0.00012207,2]
[324911821,1714411847858,-1267.82998508,0.00012207,2]
[324911822,1714411847872,-8162.31181905,0.00012207,2]
[324911823,1714411847884,-1342.68689567,0.000129,2]
[324911824,1714411847897,-6152.33933252,0.00012978,3]
[324911825,1714411847912,-6345.0648,0.00012978,3]
[324911826,1714411847933,-749.91733159,0.00012978,3]
[324911827,1714411847946,-5850.98052929,0.00012978,3]
[324911828,1714411847960,-432.06674985,0.00012978,3]
[324911829,1714411847974,-2535.00000216,0.00012978,3]
[324911830,1714411847987,-7112.26964255,0.00012978,3]
[324911831,1714411848038,-500.0,0.00012203,2]
[324911832,1714411848050,-2.77442162,0.00012978,3]
[324911833,1714411848441,-485.03332197,0.00012477,2]
[324911834,1714411848454,-798.37886202,0.00012629,2]
[324911835,1714411848468,-1288.24683318,0.00012629,2]
[324911836,1714411848483,-1012.3743048,0.00012629,2]
[324911837,1714411848496,-657.97,0.000128,2]
[324911838,1714411848511,-803.0,0.00012978,2]
[324911839,1714411848521,-435.52014138,0.00012978,3]
[324911840,1714411848533,-917.0808543,0.00012978,3]
[324911841,1714411848553,-10523.1,0.00012978,3]
[324911842,1714411848565,-176707.20467337,0.00012978,3]
[324911843,1714411848575,-292985.08481092,0.00012998,2]
[324911844,1714411848588,-284.39061137,0.00012998,2]
[324911845,1714411848611,-811.0,0.00012998,2]
[324911846,1714411848623,-1117.65997474,0.00012998,2]
[324911847,1714411848635,-1066.29677195,0.00012998,2]
[324911848,1714411848719,-2037.18162,0.00012998,2]
[324911849,1714411848731,-6333.18770583,0.00012998,2]
[324911850,1714411848742,-315.01878,0.00012998,2]
[324911851,1714411848754,-16429.32181704,0.00012998,2]
[324911852,1714411849049,-285.5184421,0.00012998,2]
[324911853,1714411849074,-2957.21493839,0.00012998,2]
[324911854,1714411849085,-316.01403212,0.00012998,2]
[324911855,1714411849097,-13359.11067377,0.00012998,2]
[324911856,1714411857513,187.09,0.00010006,2]
[324911857,1714411868915,179.73027073,0.00010073,2]
[324911858,1714411878474,466.9443,0.00010243,2]
[324911869,1714411950863,8403.3912,0.00010239,2]
[324911872,1714412133361,19687.30218531,0.00010239,2]
[324911873,1714412133644,559.83176209,0.00010239,2]
[324911874,1714412135324,407676.5846408,0.00010239,2]
[324911875,1714412136521,1472.47323451,0.00010239,2]
[324911876,1714412137123,20176.31019024,0.00010239,2]
[324911877,1714412138425,7503.5046284,0.00010239,2]
[324911878,1714412141393,943.34798454,0.00010239,2]
[324911879,1714412141512,399.48907395,0.00010239,2]
[324911880,1714412142631,365.88218524,0.00010239,2]
[324911881,1714412150428,1817.12240744,0.00010239,2]
[324911882,1714412151826,844.66568291,0.00010239,2]
[324911883,1714412157563,559.65232839,0.00010239,2]
[324911884,1714412158448,1471.52494967,0.00010239,2]
[324911885,1714412160301,1375.03310501,0.00010239,2]
[324911886,1714412163422,399.21632785,0.00010239,2]
[324911887,1714412171354,19687.30218531,0.00010239,2]
[324911888,1714412173528,943.34796342,0.00010239,2]
[324911889,1714412173590,559.83176209,0.00010239,2]
[324911890,1714412178349,7503.5046284,0.00010239,2]
[324911891,1714412179257,258024.8379848,0.00010239,2]
[324911892,1714412180915,866.82015334,0.00010239,2]
[324911893,1714412181425,399.3527009,0.00010239,2]
[324911894,1714412182443,1471.99909209,0.00010239,2]
[324911895,1714412185098,2140.6438848,0.00010239,2]
[324911896,1714412186234,1375.03310501,0.00010239,2]
[324911897,1714412191578,559.83176209,0.00010239,2]
[324911898,1714412192651,481.82894602,0.00010239,2]
[324911899,1714412193292,943.34796342,0.00010239,2]
[324911900,1714412194410,866.54413844,0.00010239,2]
[324911901,1714412196992,546.20949815,8.191e-05,2]
[324911902,1714412197360,19687.30218531,0.00010239,2]
[324911903,1714412198325,366.00520161,0.00010239,2]
[324911904,1714412198435,7503.5046284,0.00010239,2]
[324911905,1714412198480,1472.47323451,0.00010239,2]
[324911906,1714412202252,1375.03310501,0.00010239,2]
[324911907,1714412210396,559.83176209,0.00010239,2]
[324911908,1714412214358,7503.5046284,0.00010239,2]
[324911909,1714412214958,546.20949815,8.191e-05,2]
[324911910,1714412216439,1471.52494967,0.00010239,2]
[324911911,1714412217363,19687.30218531,0.00010239,2]
[324911912,1714412220310,365.75916887,0.00010239,2]
[324911913,1714412224240,1373.32321041,0.00010239,2]
[324911914,1714412230353,7493.88143396,0.00010239,2]
[324911915,1714412230949,546.20949815,8.191e-05,2]
[324911916,1714412231573,559.83176209,0.00010239,2]
[324911917,1714412232388,866.82015334,0.00010239,2]
[324911918,1714412235725,943.66867027,0.00010239,2]
[324911919,1714412235785,19687.30218531,0.00010239,2]
[324911920,1714412238452,1472.230329,0.00010239,2]
[324911921,1714412240614,361.4070713,0.00010239,2]
[324911922,1714412248348,7503.5046284,0.00010239,2]
[324911923,1714412250298,1375.03310501,0.00010239,2]
[324911924,1714412250386,866.82015334,0.00010239,2]
[324911925,1714412250948,546.20949815,8.191e-05,2]
[324911926,1714412251271,231386.64378918,0.00010239,2]
[324911927,1714412253625,559.83176209,0.00010239,2]
[324911928,1714412255306,721.26337781,0.00010239,2]
[324911929,1714412256584,363.10490325,0.00010239,2]
[324911930,1714412257373,19687.30218531,0.00010239,2]
[324911931,1714412266363,1685.85774066,0.00010239,2]
[324911932,1714412266406,866.82015334,0.00010239,2]
[324911933,1714412266950,548.65614973,8.191e-05,2]
[324911934,1714412270407,559.83176209,0.00010239,2]
[324911935,1714412272274,1375.03310501,0.00010239,2]
[324911936,1714412273279,201360.42879926,0.00010239,2]
[324911937,1714412277101,20182.90917099,0.00010239,2]
[324911938,1714412277371,19687.30218531,0.00010239,2]
[324911939,1714412284394,866.82015334,0.00010239,2]
[324911940,1714412287581,559.83176209,0.00010239,2]
[324911941,1714412291278,309545.38016932,0.00010239,2]
[324911942,1714412292269,1375.03310501,0.00010239,2]
[324911943,1714412297241,20176.14188003,0.00010239,2]
[324911944,1714412301374,9095.64748692,0.00010239,2]
[324911945,1714412302402,865.47135739,0.00010239,2]
[324911946,1714412307617,559.83176209,0.00010239,2]
[324911947,1714412310241,1375.03310501,0.00010239,2]
[324911948,1714412327626,559.83176209,0.00010239,2]
[324911949,1714412328255,1375.03310501,0.00010239,2]
[324911950,1714412334491,250.0,0.00010246,2]
[324911951,1714412344248,1373.68643729,0.00010239,2]
[324911952,1714412345581,559.83176209,0.00010239,2]
[324911953,1714412348954,120586.6328839,0.00010239,2]
[324911954,1714412348976,120000.0,0.00010239,2]
[324911955,1714412349004,157811.22824749,0.00010239,2]
[324911957,1714412468669,657.1,8.276e-05,2]
[324911958,1714412469914,6179.06449145,0.00010079,2]
[324911959,1714412520344,200.0,0.00010039,2]
[324911960,1714412521276,1429.352568,0.0001007,2]
[324911961,1714412532185,175.59,0.00010065,2]
[324911964,1714412586317,180.24,9.588e-05,2]
[324911965,1714412586852,180.24,9.615e-05,2]
[324911966,1714412587388,180.24,9.641e-05,2]
[324911967,1714412587453,180.24,9.667e-05,2]
[324911968,1714412587569,180.24,9.694e-05,2]
[324911969,1714412587792,180.24,9.72e-05,2]
[324911970,1714412588234,180.24,9.746e-05,2]
[324911971,1714412588478,180.24,9.773e-05,2]
[324911972,1714412588981,180.24,9.799e-05,2]
[324911973,1714412589492,180.24,9.825e-05,2]
[324911974,1714412589777,180.24,9.851e-05,2]
[324911975,1714412590016,180.24,9.878e-05,2]
[324911976,1714412590425,180.24,9.904e-05,2]
[324911977,1714412590624,180.24,9.93e-05,2]
[324911978,1714412590882,180.24,9.957e-05,2]
[324911979,1714412591326,180.24,9.983e-05,2]
[324911980,1714412591370,180.24,0.00010009,2]
[324911981,1714412591584,180.24,0.00010036,2]
[324911982,1714412591826,180.24,0.00010062,2]
[324911983,1714412592036,180.24,0.00010088,2]
[324911984,1714412656431,158.29,9.517e-05,2]
[324911985,1714412663224,248.75,9.735e-05,2]
[324911986,1714412674745,208.68,9.736e-05,2]
[324911987,1714412716998,23890.0,9.517e-05,2]
[324911997,1714412741451,600.0,9.712e-05,2]
[324911998,1714412761880,1206.97,9.517e-05,2]
[324911999,1714412765638,1037.76987078,0.000101,2]
[324912000,1714412771084,953.85703351,0.000101,2]
[324912001,1714412776932,155.72851281,0.000101,2]
[324912002,1714412786325,2216.8663652,0.000101,2]
[324912003,1714412789865,538.30667698,0.000101,2]
[324912004,1714412792938,787.64873451,0.000101,2]
[324912005,1714412793188,953.85703351,9.725e-05,2]
[324912006,1714412795084,781.81418738,0.000101,2]
[324912007,1714412803351,5549.67368343,0.000101,2]
[324912008,1714412810619,872.18237995,0.000101,2]
[324912009,1714412812353,1310.71955182,0.000101,2]
[324912010,1714412815514,3114.8,9.75e-05,2]
[324912011,1714412817073,953.85703351,9.725e-05,2]
[324912012,1714412835079,876.35201781,9.725e-05,2]
[324912016,1714412923919,509.5724514,0.00025,120]
[324912018,1714412929397,1852.42,9.728e-05,2]
[324912021,1714412942264,605.64,9.728e-05,2]
[324912022,1714412947792,624.24,8.219e-05,2]
[324912023,1714412975155,1037.76987078,0.000101,2]
[324912031,1714413032299,-324.0528959,0.00010235,2]
[324912032,1714413032309,-300.0,0.00010236,2]
[324912033,1714413032320,-1839.92978232,0.00010236,2]
[324912034,1714413032331,-1162.03967438,0.00010236,2]
[324912035,1714413032340,-565.63009497,0.00010237,2]
[324912036,1714413032350,-155.64997923,0.00010237,2]
[324912037,1714413032359,-752.86935992,0.00010237,2]
[324912038,1714413032368,-162.17492968,0.00010237,2]
[324912039,1714413032378,-538.11566298,0.00010237,2]
[324912040,1714413032387,-781.50035442,0.00010237,2]
[324912041,1714413032396,-365.10629022,0.00010237,2]
[324912042,1714413032405,-532.96037102,0.00010238,2]
[324912043,1714413032415,-3968.1341408,0.00010238,2]
[324912044,1714413032424,-3015.81914238,0.00010239,2]
[324912063,1714413032959,-602.76216,0.00010239,2]
[324912064,1714413032975,-2970.26381791,0.00010239,2]
[324912065,1714413032987,-278.59038507,0.00010239,2]
[324912066,1714413032998,-34616.25825556,0.00010239,2]
[324912067,1714413033056,-3801.99619498,0.00010239,2]
[324912068,1714413033068,-102757.62009865,0.00010239,2]
[324912069,1714413033077,-422.85053879,0.00010239,2]
[324912070,1714413033087,-499.99,0.00010242,2]
[324912071,1714413033097,-624.24,0.00010462,2]
[324912072,1714413033106,-3552.54,0.0001054,2]
[324912073,1714413033115,-150.99,0.0001054,2]
[324912074,1714413033124,-4768.98,0.0001054,2]
[324912075,1714413033134,-9999.99,0.0001054,2]
[324912076,1714413033143,-939.6,0.00010553,2]
[324912077,1714413033152,-991.43,0.00010553,2]
[324912078,1714413033161,-999.99,0.00010553,2]
[324912079,1714413033170,-939.6,0.00010556,2]
[324912080,1714413033180,-939.6,0.00010559,2]
[324912081,1714413033189,-939.6,0.00010561,2]
[324912082,1714413033198,-939.6,0.00010564,2]
[324912083,1714413033208,-939.6,0.00010567,2]
[324912084,1714413033217,-939.6,0.0001057,2]
[324912085,1714413033226,-939.6,0.00010572,2]
[324912086,1714413033235,-939.6,0.00010575,2]
[324912087,1714413033244,-939.6,0.00010578,2]
[324912088,1714413033253,-939.6,0.00010581,2]
[324912089,1714413033263,-939.6,0.00010583,2]
[324912090,1714413033273,-939.6,0.00010586,2]
[324912091,1714413033282,-939.6,0.00010589,2]
[324912092,1714413033292,-939.6,0.00010592,2]
[324912093,1714413033303,-939.6,0.00010595,2]
[324912094,1714413033313,-939.6,0.00010597,2]
[324912095,1714413033322,-939.6,0.000106,2]
[324912096,1714413033331,-939.6,0.00010603,2]
[324912097,1714413033340,-939.6,0.00010606,2]
[324912098,1714413033351,-215.59,0.000107,2]
[324912099,1714413033359,-670.72,0.00010711,2]
[324912100,1714413033369,-150.0,0.00010959,2]
[324912101,1714413033378,-2450.0,0.00011,3]
[324912102,1714413033388,-500.0,0.00011165,2]
[324912103,1714413033398,-564.89,0.00011165,2]
[324912104,1714413033411,-1766.49,0.00011166,2]
[324912105,1714413033421,-1068.85,0.00011166,2]
[324912106,1714413033431,-536.75,0.00011166,2]
[324912107,1714413033441,-1981.3,0.00011166,2]